fUSD/lending_fUSD_20250804
["ID","MTS","AMOUNT","RATE_DAILY","PERIOD"]
[377210500,1754293841270,-150.0,0.00045929,2]
[377210501,1754293841279,-2162.47920646,0.00045933,15]
[377210502,1754293841288,-1115.63200951,0.00045937,2]
[377210503,1754293841297,-350.63,0.00045956,120]
[377210504,1754293841307,-500.0,0.00045973,10]
[377210505,1754293841316,-454.5,0.00045983,14]
[377210506,1754293841325,-150.0,0.00045986,2]
[377210507,1754293841334,-50000.0,0.00046,56]
[377210508,1754293841343,-50000.0,0.00046,46]
[377210509,1754293841352,-320.72669391,0.00046,120]
[377210510,1754293841361,-317.13523982,0.00046,120]
[377210511,1754293841371,-303.4265259,0.00046,120]
[377210512,1754293841380,-1042.0,0.00046,120]
[377210513,1754293841389,-500.0,0.00046,120]
[377210514,1754293841398,-153.0,0.00046,120]
[377210515,1754293841407,-211.425049,0.00046,10]
[377210516,1754293841416,-818.41,0.00046027,30]
[377210517,1754293841426,-818.41,0.00046027,30]
[377210518,1754293841435,-815.89,0.00046027,30]
[377210519,1754293841444,-933.86,0.00046027,30]
[377210520,1754293841453,-466.93,0.00046027,30]
[377210521,1754293841462,-464.31,0.00046027,30]
[377210522,1754293841472,-537.09,0.00046027,30]
[377210523,1754293841481,-289.43,0.00046027,30]
[377210524,1754293841490,-235.29,0.00046027,30]
[377210525,1754293841499,-150.0,0.00046027,30]
[377210526,1754293841509,-537.09,0.00046027,30]
[377210527,1754293841518,-150.0,0.00046027,30]
[377210528,1754293841527,-448.43,0.00046027,30]
[377210529,1754293841536,-150.0,0.00046027,30]
[377210530,1754293841545,-150.0,0.00046027,30]
[377210531,1754293841555,-150.0,0.00046027,30]
[377210532,1754293841564,-150.0,0.00046027,30]
[377210533,1754293841574,-150.0,0.00046027,30]
[377210534,1754293841584,-150.0,0.00046027,30]
[377210535,1754293841594,-150.0,0.00046027,30]
[377210536,1754293841603,-150.0,0.00046053,2]
[377210537,1754293841612,-454.5,0.00046062,14]
[377210538,1754293841621,-1006.00426771,0.00046068,10]
[377210539,1754293841631,-203.55024849,0.00046072,53]
[377210540,1754293841640,-1261.60255281,0.00046091,2]
[377210541,1754293841649,-150.0,0.00046097,2]
[377210542,1754293841658,-823.47689525,0.00046116,15]
[377210543,1754293841668,-150.0,0.0004614,2]
[377210544,1754293841678,-454.5,0.0004614,14]
[377210545,1754293841687,-150.0,0.00046194,2]
[377210546,1754293841697,-150.0,0.00046198,2]
[377210547,1754293841706,-645.75805,0.00046199,22]
[377210548,1754293841715,-2162.47920646,0.00046205,15]
[377210549,1754293841725,-150.0,0.00046219,2]
[377210550,1754293841735,-1000.0,0.0004622,14]
[377210551,1754293841744,-999.0,0.0004622,120]
[377210552,1754293841753,-150.0,0.00046243,2]
[377210553,1754293841764,-661.93069684,0.00046245,15]
[377210554,1754293841773,-1407.57309611,0.00046245,2]
[377210555,1754293841782,-443.46960884,0.0004625,28]
[377210556,1754293841792,-203.55024849,0.00046279,54]
[377210557,1754293841802,-150.0,0.00046299,2]
[377210558,1754293841811,-150.0,0.00046327,2]
[377210559,1754293841820,-191.28,0.00046355,2]
[377210560,1754293841832,-150.0,0.00046364,2]
[377210561,1754293841841,-682.02133868,0.00046373,30]
[377210562,1754293841851,-150.0,0.00046374,2]
[377210563,1754293841861,-963.22546012,0.00046375,30]
[377210564,1754293841871,-1553.54363941,0.00046399,2]
[377210565,1754293841880,-823.47689525,0.00046432,15]
[377210566,1754293841891,-150.0,0.00046455,2]
[377210567,1754293841901,-2468.976,0.00046457,2]
[377210568,1754293841911,-955.0,0.00046457,2]
[377210569,1754293841922,-809.0,0.00046457,2]
[377210570,1754293841932,-1251.0,0.00046457,2]
[377210571,1754293841942,-568.64,0.00046457,2]
[377210572,1754293841953,-2039.927,0.00046457,2]
[377210573,1754293841963,-601.59,0.00046457,2]
[377210574,1754293841973,-1305.688,0.00046457,2]
[377210575,1754293841983,-1708.224,0.00046457,2]
[377210576,1754293841993,-4137.0,0.00046457,2]
[377210577,1754293842003,-6070.0,0.00046457,2]
[377210578,1754293842014,-3800.239,0.00046457,2]
[377210579,1754293842024,-150.0,0.00046459,2]
[377210580,1754293842034,-2162.47920646,0.00046477,15]
[377210581,1754293842044,-203.55024849,0.00046486,54]
[377210582,1754293842054,-150.0,0.00046491,2]
[377210583,1754293842064,-25008.56109244,0.000465,120]
[377210584,1754293842074,-4000.0,0.000465,120]
[377210585,1754293842084,-151.724246,0.000465,14]
[377210586,1754293842095,-457.2201239,0.00046532,2]
[377210587,1754293842105,-1699.51418272,0.00046553,2]
[377210588,1754293842118,-150.0,0.00046558,2]
[377210589,1754293842129,-248984.84203237,0.00046563,120]
[377210590,1754293842140,-151.0,0.00046563,14]
[377210591,1754293842149,-151.0,0.00046563,14]
[377210592,1754293842162,-158.460527,0.00046563,14]
[377210593,1754293842173,-500.0,0.00046573,60]
[377210594,1754293842183,-513.0077256,0.00046573,60]
[377210595,1754293842196,-500.0,0.00046574,60]
[377210596,1754293842206,-801.70181124,0.00046575,120]
[377210597,1754293842216,-1330.173,0.00046575,120]
[377210598,1754293842227,-150.407077,0.00046575,120]
[377210599,1754293842236,-400.0,0.00046575,120]
[377210600,1754293842247,-401.02523338,0.00046575,120]
[377210601,1754293842257,-441.22973787,0.00046575,120]
[377210602,1754293842267,-400.93951525,0.00046575,120]
[377210603,1754293842277,-400.0,0.00046575,120]
[377210604,1754293842287,-400.0,0.00046575,120]
[377210605,1754293842296,-400.0,0.00046575,120]
[377210606,1754293842306,-400.0,0.00046575,120]
[377210607,1754293842316,-400.0,0.00046575,120]
[377210608,1754293842328,-500.0,0.00046575,120]
[377210609,1754293842339,-500.0,0.00046575,120]
[377210610,1754293842350,-500.0,0.00046575,120]
[377210611,1754293842360,-349.67309672,0.00046575,120]
[377210612,1754293842371,-400.0,0.00046575,120]
[377210613,1754293842382,-400.0,0.00046575,120]
[377210614,1754293842392,-400.0,0.00046575,120]
[377210615,1754293842402,-400.0,0.00046575,120]
[377210616,1754293842412,-400.0,0.00046575,120]
[377210617,1754293842422,-400.0,0.00046575,120]
[377210618,1754293842432,-400.0,0.00046575,120]
[377210620,1754293842442,-208.91728259,0.00046575,120]
[377210623,1754293842452,-400.0,0.00046575,120]
[377210624,1754293842462,-400.0,0.00046575,120]
[377210625,1754293842472,-203.3918934,0.00046575,120]
[377210626,1754293842482,-400.0,0.00046575,120]
[377210627,1754293842492,-400.0,0.00046575,120]
[377210628,1754293842502,-489.98014498,0.00046575,120]
[377210629,1754293842512,-400.0,0.00046575,120]
[377210630,1754293842522,-400.0,0.00046575,120]
[377210631,1754293842532,-400.0,0.00046575,120]
[377210632,1754293842542,-400.0,0.00046575,120]
[377210633,1754293842551,-400.0,0.00046575,120]
[377210634,1754293842561,-400.0,0.00046575,120]
[377210635,1754293842571,-400.0,0.00046575,120]
[377210636,1754293842580,-400.0,0.00046575,120]
[377210637,1754293842590,-281.62817952,0.00046575,120]
[377210638,1754293842600,-400.0,0.00046575,120]
[377210639,1754293842610,-400.0,0.00046575,120]
[377210640,1754293842620,-486.23495341,0.00046575,120]
[377210641,1754293842630,-400.0,0.00046575,120]
[377210642,1754293842640,-400.0,0.00046575,120]
[377210643,1754293842649,-400.0,0.00046575,120]
[377210644,1754293842659,-400.0,0.00046575,120]
[377210645,1754293842669,-400.0,0.00046575,120]
[377210646,1754293842679,-400.0,0.00046575,120]
[377210647,1754293842688,-400.0,0.00046575,120]
[377210648,1754293842698,-400.0,0.00046575,120]
[377210649,1754293842708,-401.55746357,0.00046575,120]
[377210650,1754293842718,-400.0,0.00046575,120]
[377210651,1754293842728,-400.0,0.00046575,120]
[377210652,1754293842737,-400.0,0.00046575,120]
[377210653,1754293842747,-400.0,0.00046575,120]
[377210654,1754293842756,-699.35,0.00046575,120]
[377210655,1754293842767,-400.0,0.00046575,120]
[377210656,1754293842777,-767.2,0.00046575,120]
[377210657,1754293842787,-400.0,0.00046575,120]
[377210658,1754293842797,-684.22,0.00046575,120]
[377210659,1754293842807,-400.0,0.00046575,120]
[377210660,1754293842818,-400.0,0.00046575,120]
[377210661,1754293842828,-400.0,0.00046575,120]
[377210662,1754293842839,-400.0,0.00046575,120]
[377210663,1754293842849,-400.0,0.00046575,120]
[377210664,1754293842859,-400.0,0.00046575,120]
[377210665,1754293842869,-400.0,0.00046575,120]
[377210666,1754293842879,-400.0,0.00046575,120]
[377210667,1754293842889,-151.0,0.00046575,14]
[377210668,1754293842900,-151.0,0.00046575,14]
[377210669,1754293842910,-400.0,0.00046575,120]
[377210670,1754293842920,-400.0,0.00046575,120]
[377210671,1754293842931,-400.0,0.00046575,2]
[377210672,1754293842941,-400.0,0.00046575,120]
[377210673,1754293842952,-402.86794806,0.00046575,120]
[377210674,1754293842962,-400.60341579,0.00046575,120]
[377210675,1754293842972,-400.0,0.00046575,120]
[377210676,1754293842984,-400.0,0.00046575,120]
[377210677,1754293842994,-757.99,0.00046575,120]
[377210678,1754293843005,-400.0,0.00046575,120]
[377210679,1754293843016,-445.98,0.00046575,120]
[377210680,1754293843026,-169.28776034,0.00046575,120]
[377210681,1754293843036,-400.0,0.00046575,120]
[377210682,1754293843046,-402.44416534,0.00046575,120]
[377210683,1754293843057,-609.72,0.00046575,120]
[377210684,1754293843067,-400.0,0.00046575,120]
[377210685,1754293843078,-506.15,0.00046575,120]
[377210686,1754293843088,-400.0,0.00046575,120]
[377210687,1754293843099,-400.0,0.00046575,120]
[377210688,1754293843109,-400.0,0.00046575,120]
[377210689,1754293843123,-500.0,0.00046575,120]
[377210690,1754293843133,-500.0,0.00046575,120]
[377210691,1754293843143,-500.0,0.00046575,120]
[377210692,1754293843153,-536.24492137,0.00046575,120]
[377210693,1754293843162,-400.0,0.00046575,120]
[377210694,1754293843172,-400.0,0.00046575,120]
[377210695,1754293843183,-400.0,0.00046575,120]
[377210696,1754293843193,-512.52968323,0.00046575,120]
[377210697,1754293843203,-400.98727849,0.00046575,120]
[377210698,1754293843214,-151.610202,0.00046575,14]
[377210699,1754293843225,-400.0,0.00046575,120]
[377210700,1754293843235,-400.0,0.00046575,120]
[377210701,1754293843245,-400.0,0.00046575,120]
[377210702,1754293843255,-525.69173418,0.00046575,120]
[377210703,1754293843266,-400.0,0.00046575,120]
[377210704,1754293843276,-400.0,0.00046575,120]
[377210705,1754293843287,-668.1,0.00046575,60]
[377210706,1754293843298,-400.0,0.00046575,120]
[377210707,1754293843309,-421.86,0.00046575,30]
[377210708,1754293843319,-400.0,0.00046575,120]
[377210709,1754293843330,-1256.47,0.00046575,120]
[377210710,1754293843341,-402.2295408,0.00046575,120]
[377210711,1754293843353,-1187.52,0.00046575,120]
[377210712,1754293843363,-400.0,0.00046575,120]
[377210713,1754293843374,-493.62,0.00046575,120]
[377210714,1754293843384,-400.0,0.00046575,120]
[377210715,1754293843395,-1960.928243,0.00046575,120]
[377210716,1754293843405,-400.0,0.00046575,120]
[377210717,1754293843415,-1690.433574,0.00046575,120]
[377210718,1754293843426,-400.0,0.00046575,120]
[377210719,1754293843436,-400.0,0.00046575,120]
[377210720,1754293843446,-1884.130011,0.00046575,120]
[377210721,1754293843456,-400.0,0.00046575,120]
[377210722,1754293843466,-400.0,0.00046575,120]
[377210723,1754293843476,-400.0,0.00046575,120]
[377210724,1754293843486,-659.6,0.00046575,120]
[377210725,1754293843496,-400.0,0.00046575,120]
[377210726,1754293843507,-400.0,0.00046575,120]
[377210727,1754293843517,-400.0,0.00046575,120]
[377210728,1754293843527,-156.985334,0.00046575,120]
[377210729,1754293843538,-400.0,0.00046575,12]
[377210730,1754293843550,-405.89,0.00046575,120]
[377210731,1754293843560,-400.0,0.00046575,120]
[377210732,1754293843570,-400.0,0.00046575,120]
[377210733,1754293843580,-156.609953,0.00046575,120]
[377210734,1754293843590,-400.0,0.00046575,120]
[377210735,1754293843600,-400.0,0.00046575,120]
[377210736,1754293843610,-400.0,0.00046575,16]
[377210737,1754293843620,-400.0,0.00046575,120]
[377210738,1754293843630,-650.0,0.00046575,120]
[377210739,1754293843641,-400.0,0.00046575,120]
[377210740,1754293843651,-642.85,0.00046575,120]
[377210741,1754293843660,-400.0,0.00046575,120]
[377210742,1754293843670,-1373.04,0.00046575,120]
[377210743,1754293843681,-400.0,0.00046575,120]
[377210746,1754293843691,-400.0,0.00046575,120]
[377210748,1754293843701,-400.0,0.00046575,120]
[377210750,1754293843711,-400.0,0.00046575,120]
[377210752,1754293843721,-435.74,0.00046575,120]
[377210754,1754293843731,-400.0,0.00046575,120]
[377210756,1754293843740,-400.0,0.00046575,120]
[377210758,1754293843750,-400.0,0.00046575,120]
[377210760,1754293843760,-400.0,0.00046575,120]
[377210762,1754293843770,-494.86260067,0.00046575,120]
[377210764,1754293843780,-311.42467375,0.00046575,120]
[377210765,1754293843790,-400.0,0.00046575,120]
[377210766,1754293843799,-926.06,0.00046575,120]
[377210767,1754293843809,-803.51,0.00046575,120]
[377210769,1754293843819,-471.39768456,0.00046575,120]
[377210771,1754293843829,-400.0,0.00046575,120]
[377210772,1754293843839,-400.0,0.00046575,120]
[377210774,1754293843849,-436.81,0.00046575,120]
[377210775,1754293843859,-400.0,0.00046575,120]
[377210776,1754293843869,-400.0,0.00046575,120]
[377210777,1754293843879,-400.0,0.00046575,120]
[377210778,1754293843889,-684.31,0.00046575,120]
[377210779,1754293843899,-1221.48,0.00046575,120]
[377210780,1754293843908,-400.0,0.00046575,120]
[377210781,1754293843918,-400.0,0.00046575,120]
[377210782,1754293843928,-158.31360983,0.00046575,120]
[377210783,1754293843939,-402.63469294,0.00046575,120]
[377210784,1754293843950,-400.0,0.00046575,120]
[377210785,1754293843960,-440.08,0.00046575,120]
[377210786,1754293843971,-400.0,0.00046575,120]
[377210787,1754293843982,-400.0,0.00046575,120]
[377210788,1754293843993,-400.0,0.00046575,120]
[377210789,1754293844002,-151.769587,0.00046575,14]
[377210790,1754293844014,-401.23909468,0.00046575,120]
[377210791,1754293844025,-434.38,0.00046575,120]
[377210792,1754293844035,-349.74972489,0.00046575,120]
[377210793,1754293844046,-400.0,0.00046575,120]
[377210794,1754293844057,-400.0,0.00046575,120]
[377210795,1754293844067,-400.0,0.00046575,5]
[377210796,1754293844078,-400.0,0.00046575,120]
[377210797,1754293844088,-1729.19,0.00046575,120]
[377210798,1754293844099,-275.69068579,0.00046575,120]
[377210799,1754293844110,-401.50396828,0.00046575,120]
[377210800,1754293844124,-400.0,0.00046575,120]
[377210801,1754293844135,-400.0,0.00046575,120]
[377210802,1754293844144,-400.0,0.00046575,120]
[377210803,1754293844154,-1620.23,0.00046575,120]
[377210804,1754293844165,-400.0,0.00046575,120]
[377210805,1754293844176,-867.58,0.00046575,120]
[377210806,1754293844186,-400.0,0.00046575,120]
[377210807,1754293844197,-1002.82,0.00046575,120]
[377210810,1754293844208,-400.0,0.00046575,120]
[377210812,1754293844218,-556.22,0.00046575,120]
[377210814,1754293844228,-647.76,0.00046575,120]
[377210816,1754293844238,-409.22,0.00046575,120]
[377210817,1754293844248,-400.0,0.00046575,120]
[377210818,1754293844259,-1010.32,0.00046575,120]
[377210819,1754293844268,-400.0,0.00046575,120]
[377210820,1754293844279,-400.0,0.00046575,120]
[377210821,1754293844289,-400.0,0.00046575,120]
[377210822,1754293844299,-402.38630149,0.00046575,120]
[377210823,1754293844309,-443.06,0.00046575,120]
[377210824,1754293844320,-400.0,0.00046575,120]
[377210825,1754293844331,-1126.3,0.00046575,120]
[377210826,1754293844341,-400.0,0.00046575,120]
[377210827,1754293844350,-400.0,0.00046575,120]
[377210828,1754293844361,-1287.13,0.00046575,120]
[377210829,1754293844371,-435.54108708,0.00046575,120]
[377210830,1754293844381,-681.43,0.00046575,120]
[377210831,1754293844391,-400.0,0.00046575,120]
[377210832,1754293844401,-821.79,0.00046575,120]
[377210833,1754293844411,-401.92044167,0.00046575,120]
[377210834,1754293844422,-400.0,0.00046575,120]
[377210835,1754293844433,-400.47752707,0.00046575,120]
[377210836,1754293844443,-1157.7,0.00046575,120]
[377210838,1754293844453,-903.96,0.00046575,120]
[377210839,1754293844463,-401.27796363,0.00046575,120]
[377210840,1754293844474,-400.0,0.00046575,120]
[377210841,1754293844484,-400.0,0.00046575,120]
[377210842,1754293844494,-413.99,0.00046575,120]
[377210843,1754293844505,-400.0,0.00046575,120]
[377210844,1754293844516,-400.0,0.00046575,120]
[377210845,1754293844526,-400.0,0.00046575,120]
[377210846,1754293844536,-850.09,0.00046575,120]
[377210847,1754293844546,-400.0,0.00046575,120]
[377210848,1754293844556,-400.0,0.00046575,120]
[377210849,1754293844567,-1108.92,0.00046575,120]
[377210850,1754293844577,-400.0,0.00046575,120]
[377210851,1754293844587,-402.62444288,0.00046575,120]
[377210852,1754293844597,-402.27432025,0.00046575,120]
[377210853,1754293844608,-400.0,0.00046575,120]
[377210854,1754293844618,-600.99,0.00046575,120]
[377210855,1754293844628,-401.51159927,0.00046575,120]
[377210856,1754293844638,-151.0,0.00046575,14]
[377210857,1754293844648,-400.0,0.00046575,120]
[377210858,1754293844658,-400.88591507,0.00046575,120]
[377210859,1754293844668,-1306.49,0.00046575,120]
[377210860,1754293844680,-400.0,0.00046575,120]
[377210861,1754293844990,-400.0,0.00046575,120]
[377210862,1754293845011,-400.0,0.00046575,120]
[377210863,1754293845021,-205.67038288,0.00046575,120]
[377210864,1754293845032,-400.0,0.00046575,120]
[377210865,1754293845042,-669.71,0.00046575,120]
[377210866,1754293845052,-151.0,0.00046575,14]
[377210867,1754293845062,-529.97,0.00046575,120]
[377210868,1754293845072,-400.0,0.00046575,120]
[377210869,1754293845082,-400.0,0.00046575,120]
[377210870,1754293845091,-451.38,0.00046575,120]
[377210871,1754293845101,-151.0,0.00046575,14]
[377210872,1754293845111,-400.0,0.00046575,120]
[377210873,1754293845125,-400.0,0.00046575,120]
[377210874,1754293845135,-400.0,0.00046575,120]
[377210875,1754293845145,-400.97625523,0.00046575,120]
[377210876,1754293845155,-896.35,0.00046575,120]
[377210877,1754293845164,-400.0,0.00046575,2]
[377210878,1754293845177,-400.0,0.00046575,120]
[377210879,1754293845193,-400.0,0.00046575,120]
[377210880,1754293845203,-1493.42,0.00046575,120]
[377210881,1754293845213,-462.52,0.00046575,120]
[377210882,1754293845223,-1437.32,0.00046575,120]
[377210883,1754293845233,-504.36,0.00046575,120]
[377210884,1754293845243,-934.84,0.00046575,120]
[377210885,1754293845253,-400.0,0.00046575,120]
[377210886,1754293845263,-400.0,0.00046575,120]
[377210887,1754293845273,-400.0,0.00046575,120]
[377210888,1754293845283,-400.0,0.00046575,120]
[377210889,1754293845292,-400.0,0.00046575,120]
[377210890,1754293845302,-400.0,0.00046575,120]
[377210891,1754293845312,-400.0,0.00046575,120]
[377210892,1754293845322,-403.1200295,0.00046575,120]
[377210893,1754293845331,-451.2,0.00046575,120]
[377210894,1754293845341,-401.8600715,0.00046575,120]
[377210895,1754293845350,-400.0,0.00046575,120]
[377210896,1754293845360,-400.0,0.00046575,120]
[377210898,1754293845369,-336.58143132,0.00046575,120]
[377210899,1754293845379,-939.74,0.00046575,120]
[377210900,1754293845388,-400.0,0.00046575,120]
[377210901,1754293845398,-400.0,0.00046575,120]
[377210902,1754293845407,-1003.82,0.00046575,120]
[377210903,1754293845417,-400.0,0.00046575,120]
[377210904,1754293845426,-402.36201099,0.00046575,120]
[377210905,1754293845436,-577.35,0.00046575,120]
[377210906,1754293845446,-400.0,0.00046575,120]
[377210908,1754293845457,-400.0,0.00046575,120]
[377210909,1754293845466,-400.0,0.00046575,120]
[377210910,1754293845476,-400.0,0.00046575,120]
[377210911,1754293845486,-500.0,0.00046575,120]
[377210912,1754293845495,-500.0,0.00046575,120]
[377210913,1754293845506,-500.0,0.00046575,120]
[377210914,1754293845516,-400.0,0.00046575,120]
[377210915,1754293845526,-500.0,0.00046575,120]
[377210916,1754293845538,-500.0,0.00046575,120]
[377210917,1754293845547,-1680.69,0.00046575,120]
[377210918,1754293845557,-500.0,0.00046575,120]
[377210919,1754293845567,-500.0,0.00046575,120]
[377210920,1754293845577,-500.0,0.00046575,120]
[377210922,1754293845587,-500.0,0.00046575,120]
[377210923,1754293845597,-400.0,0.00046575,120]
[377210924,1754293845606,-500.0,0.00046575,120]
[377210925,1754293845616,-500.0,0.00046575,120]
[377210926,1754293845625,-500.0,0.00046575,120]
[377210927,1754293845635,-400.0,0.00046575,120]
[377210928,1754293845648,-500.0,0.00046575,120]
[377210929,1754293845659,-400.0,0.00046575,30]
[377210930,1754293845670,-1281.8,0.00046575,120]
[377210931,1754293845680,-400.0,0.00046575,120]
[377210932,1754293845690,-429.17,0.00046575,120]
[377210933,1754293845700,-405.41,0.00046575,120]
[377210934,1754293845709,-401.48522162,0.00046575,120]
[377210935,1754293845720,-400.0,0.00046575,120]
[377210936,1754293845730,-400.0,0.00046575,120]
[377210937,1754293845741,-400.0,0.00046575,120]
[377210938,1754293845751,-400.0,0.00046575,120]
[377210939,1754293845762,-400.0,0.00046575,120]
[377210940,1754293845772,-686.26,0.00046575,30]
[377210941,1754293845781,-400.0,0.00046575,120]
[377210942,1754293845793,-874.6,0.00046575,120]
[377210943,1754293845803,-400.0,0.00046575,120]
[377210944,1754293845813,-1231.39,0.00046575,120]
[377210945,1754293845823,-1204.43,0.00046575,120]
[377210946,1754293845833,-780.58,0.00046575,120]
[377210947,1754293845843,-400.0,0.00046575,120]
[377210948,1754293845852,-869.18,0.00046575,120]
[377210949,1754293845862,-400.0,0.00046575,120]
[377210950,1754293845872,-400.0,0.00046575,120]
[377210951,1754293845882,-400.0,0.00046575,120]
[377210952,1754293845891,-400.0,0.00046575,120]
[377210953,1754293845902,-151.0,0.00046575,14]
[377210954,1754293845914,-548.66,0.00046575,120]
[377210955,1754293845923,-621.77,0.00046575,120]
[377210956,1754293845934,-596.51,0.00046575,120]
[377210957,1754293845950,-915.69,0.00046575,120]
[377210958,1754293845961,-400.0,0.00046575,120]
[377210959,1754293845971,-519.35,0.00046575,120]
[377210960,1754293845980,-642.22,0.00046575,120]
[377210961,1754293845990,-400.0,0.00046575,120]
[377210962,1754293846000,-934.32,0.00046575,120]
[377210963,1754293846010,-400.0,0.00046575,120]
[377210964,1754293846020,-583.14,0.00046575,120]
[377210965,1754293846029,-151.0,0.00046575,14]
[377210966,1754293846039,-810.88,0.00046575,120]
[377210967,1754293846050,-151.0,0.00046575,14]
[377210968,1754293846059,-1614.75,0.00046575,120]
[377210969,1754293846069,-400.0,0.00046575,120]
[377210970,1754293846078,-1286.5,0.00046575,120]
[377210971,1754293846088,-400.0,0.00046575,120]
[377210972,1754293846097,-1166.35,0.00046575,120]
[377210973,1754293846107,-1045.48,0.00046575,120]
[377210974,1754293846120,-1000.0,0.00046575,30]
[377210975,1754293846130,-400.0,0.00046575,120]
[377210976,1754293846139,-808.25,0.00046575,120]
[377210977,1754293846149,-400.0,0.00046575,120]
[377210978,1754293846159,-400.0,0.00046575,120]
[377210979,1754293846168,-494.99653214,0.00046575,120]
[377210980,1754293846178,-400.0,0.00046575,120]
[377210981,1754293846188,-400.0,0.00046575,120]
[377210982,1754293846199,-765.56,0.00046575,120]
[377210983,1754293846208,-400.0,0.00046575,120]
[377210984,1754293846218,-765.56,0.00046575,120]
[377210986,1754293846228,-765.56,0.00046575,120]
[377210988,1754293846238,-708.8,0.00046575,120]
[377210989,1754293846247,-765.56,0.00046575,120]
[377210990,1754293846257,-708.8,0.00046575,120]
[377210991,1754293846267,-765.56,0.00046575,120]
[377210992,1754293846277,-708.8,0.00046575,120]
[377210993,1754293846287,-400.0,0.00046575,120]
[377210994,1754293846298,-765.56,0.00046575,120]
[377210995,1754293846307,-708.8,0.00046575,120]
[377210996,1754293846317,-765.56,0.00046575,120]
[377210997,1754293846327,-1106.18,0.00046575,2]
[377210998,1754293846336,-708.8,0.00046575,120]
[377210999,1754293846346,-765.56,0.00046575,120]
[377211000,1754293846356,-1106.18,0.00046575,2]
[377211001,1754293846366,-708.8,0.00046575,120]
[377211002,1754293846377,-400.0,0.00046575,120]
[377211003,1754293846388,-1106.18,0.00046575,2]
[377211004,1754293846398,-765.56,0.00046575,120]
[377211005,1754293846408,-708.8,0.00046575,120]
[377211006,1754293846419,-1106.18,0.00046575,2]
[377211007,1754293846431,-765.56,0.00046575,120]
[377211008,1754293846441,-708.8,0.00046575,120]
[377211009,1754293846451,-1106.18,0.00046575,2]
[377211010,1754293846461,-765.56,0.00046575,120]
[377211011,1754293846470,-708.8,0.00046575,120]
[377211012,1754293846480,-355.4652028,0.00046575,120]
[377211013,1754293846490,-765.56,0.00046575,120]
[377211014,1754293846500,-1106.18,0.00046575,2]
[377211015,1754293846510,-708.8,0.00046575,120]
[377211016,1754293846520,-400.22333556,0.00046575,120]
[377211017,1754293846530,-708.8,0.00046575,120]
[377211018,1754293846539,-1106.18,0.00046575,2]
[377211019,1754293846550,-708.8,0.00046575,120]
[377211020,1754293846560,-765.56,0.00046575,120]
[377211021,1754293846569,-708.8,0.00046575,120]
[377211022,1754293846579,-1028.43,0.00046575,120]
[377211023,1754293846589,-1364.42,0.00046575,120]
[377211024,1754293846598,-400.0,0.00046575,120]
[377211025,1754293846608,-833.14,0.00046575,120]
[377211026,1754293846618,-400.0,0.00046575,120]
[377211027,1754293846628,-400.0,0.00046575,120]